bitfinex/quotes_SOLUSD_20250217
["timestamp","ask_amount","ask_price","bid_price","bid_amount"]
[1739787857765,0.063,185.15,185.1,10.10840073]
[1739787857964,0.063,185.15,185.12,10.10840073]
[1739787863696,0.063,185.15,185.14,10.10840073]
[1739787864001,0.063,185.15,185.13,10.10840073]
[1739787867313,0.063,185.15,185.14,13.41184853]
[1739787868091,0.063,185.15,185.14,23.52024926]
[1739787869101,0.063,185.15,185.14,27.30114926]
[1739787870700,0.063,185.15,185.14,23.52024926]
[1739787870885,0.063,185.15,185.14,27.30114926]
[1739787871076,0.063,185.15,185.14,23.52024926]
[1739787872782,0.063,185.15,185.14,27.30114926]
[1739787873084,0.063,185.15,185.14,108.80114926]
[1739787873293,0.063,185.15,185.14,105.02024926]
[1739787873810,0.063,185.15,185.14,108.80114926]
[1739787874409,0.063,185.15,185.14,105.02024926]
[1739787878284,0.063,185.15,185.14,23.52024926]
[1739787881711,0.063,185.15,185.14,13.41184853]
[1739787881900,0.063,185.15,185.13,10.10840073]
[1739787882086,0.063,185.15,185.14,3.17158516]
[1739787883996,0.063,185.15,185.12,23.52024926]
[1739787884214,0.063,185.15,185.13,10.10840073]
[1739787884419,0.063,185.15,185.14,0.03]
[1739787887702,0.063,185.15,185.14,10.13840073]
[1739787888117,0.063,185.15,185.14,0.03]
[1739787889410,0.063,185.15,185.14,10.13840073]
[1739787889918,0.063,185.15,185.14,0.03]
[1739787890318,0.063,185.15,185.14,3.21470918]
[1739787892743,0.063,185.15,185.14,0.03]
[1739787893441,0.18849,185.15,185.14,0.03]
[1739787893628,10.54787073,185.15,185.14,0.03]
[1739787894811,14.32857073,185.15,185.14,0.03]
[1739787898764,4.09468,185.15,185.14,0.03]
[1739787899963,14.20308073,185.15,185.14,0.03]
[1739787900341,14.32857073,185.15,185.14,0.03]
[1739787902979,16.32857073,185.15,185.14,0.0001]
[1739787903178,22.88457073,185.15,185.14,0.0001]
[1739787904180,29.55445558,185.15,185.14,0.0001]
[1739787907093,28.55445558,185.15,185.14,0.0001]
[1739787907395,29.55445558,185.15,185.14,0.0001]
[1739787909968,27.55445558,185.15,185.14,0.0001]
[1739787911175,29.55445558,185.15,185.14,0.0001]
[1739787911379,28.55445558,185.15,185.14,0.0001]
[1739787911579,29.55445558,185.15,185.14,0.0001]
[1739787914362,42.96630411,185.15,185.14,0.0001]
[1739787915572,83.39990703,185.15,185.14,0.0001]
[1739787915995,42.96630411,185.15,185.14,0.0001]
[1739787916982,29.55445558,185.15,185.14,0.0001]
[1739787919089,28.55445558,185.15,185.14,0.0001]
[1739787919794,20.99845558,185.15,185.14,0.0001]
[1739787920595,35.41030411,185.15,185.14,0.0001]
[1739787920794,20.37647,185.12,185.11,0.03]
[1739787920986,30.48487073,185.12,185.11,0.03]
[1739787921581,34.26617073,185.12,185.11,0.03]
[1739787931420,0.12549,185.12,185.11,0.03]
[1739787931622,10.17140073,185.15,185.11,0.03]
[1739787931790,0.063,185.15,185.11,0.03]
[1739787931989,3.8437,185.15,185.11,0.03]
[1739787932217,0.12549,185.14,185.11,0.03]
[1739787933427,82.42549,185.14,185.11,0.03]
[1739787934232,82.3,185.14,185.11,10.13840073]
[1739787934517,0.063,185.15,185.13,10.10840073]
[1739787934900,0.063,185.15,185.13,13.41184853]
[1739787936024,0.063,185.15,185.13,23.52024926]
[1739787936192,0.063,185.15,185.14,10.10840073]
[1739787936391,0.063,185.15,185.13,10.10840073]
[1739787938809,0.063,185.15,185.11,0.03]
[1739787939131,0.063,185.15,185.11,10.13840073]
[1739787939609,0.063,185.15,185.12,10.10840073]
[1739787939807,0.063,185.15,185.11,0.03]
[1739787940013,0.063,185.15,185.13,10.10840073]
[1739787942405,0.063,185.15,185.14,23.52024926]
[1739787943729,0.063,185.15,185.14,27.30114926]
[1739787944642,0.063,185.15,185.14,23.52024926]
[1739787946344,0.063,185.15,185.14,27.30114926]
[1739787947154,0.063,185.15,185.14,23.52024926]
[1739787948434,0.063,185.15,185.14,27.30114926]
[1739787949134,0.063,185.15,185.14,35.24694926]
[1739787950609,0.063,185.15,185.14,38.42246259]
[1739787951236,0.063,185.15,185.14,34.64156259]
[1739787951536,0.063,185.15,185.14,38.42246259]
[1739787951917,0.063,185.15,185.14,34.64156259]
[1739787954659,0.063,185.15,185.14,31.46604926]
[1739787955757,0.063,185.15,185.14,31.49604926]
[1739787959349,0.063,185.15,185.14,35.27694926]
[1739787959529,0.063,185.15,185.14,31.49604926]
[1739787960336,0.063,185.15,185.14,0.03]
[1739787961324,0.063,185.15,185.14,23.55024926]
[1739787962265,0.063,185.15,185.14,10.13840073]
[1739787962430,0.063,185.15,185.14,23.55024926]
[1739787963856,0.063,185.15,185.14,27.33114926]
[1739787964853,0.063,185.15,185.14,10.13840073]
[1739787965027,0.063,185.15,185.14,0.03]
[1739787966535,0.063,185.15,185.14,23.55024926]
[1739787969340,0.063,185.15,185.14,26.7308467]
[1739787969542,0.063,185.15,185.14,30.5117467]
[1739787971865,0.063,185.15,185.14,26.7308467]
[1739787972064,0.063,185.15,185.14,3.21059744]
[1739787972958,0.063,185.15,185.14,6.43159396]
[1739787973357,112.72238073,185.15,185.14,6.43159396]
[1739787973681,112.84787073,185.15,185.14,6.43159396]
[1739787973966,112.84787073,185.15,185.14,3.21059744]
[1739787974537,112.84787073,185.15,185.14,0.03]
[1739787974735,116.62857073,185.15,185.14,0.03]
[1739787976467,96.62857073,185.15,185.14,0.03]
[1739787977839,0.12549,185.13,185.11,0.03]
[1739787978041,112.78487073,185.12,185.11,0.03]
[1739787978274,102.55098,185.12,185.11,0.03]
[1739787978575,82.55098,185.12,185.11,0.03]
[1739787979079,81.56280476,185.12,185.11,0.03]
[1739787979375,81.43731476,185.12,185.11,0.03]
[1739787979740,85.34410476,185.12,185.11,0.03]
[1739787980136,81.56280476,185.12,185.11,0.03]
[1739787981066,33.88950073,185.13,185.11,0.03]
[1739787981466,0.25098,185.12,185.11,0.03]
[1739787982202,14.14068073,185.12,185.11,0.03]
[1739787984004,150.76617073,185.12,185.11,0.03]
[1739787984663,152.26817073,185.12,185.11,0.03]
[1739787984862,17.76817073,185.12,185.11,0.03]
[1739787985094,24.43805558,185.12,185.11,0.03]
[1739787985473,10.35938073,185.08,185.07,0.03]
[1739787985673,146.85938073,185.08,185.07,0.03]
[1739787985878,150.64148073,185.08,185.07,0.03]
[1739787987299,150.76697073,185.08,185.07,0.03]
[1739787988684,136.75098,185.08,185.07,0.03]
[1739787988885,146.85938073,185.08,185.07,0.03]
[1739787989062,146.98487073,185.08,185.07,0.03]
[1739787990996,150.76697073,185.08,185.07,0.03]
[1739787991304,14.26697073,185.08,185.07,0.03]
[1739787993773,15.26697073,185.08,185.07,0.03]
[1739787994073,22.93685558,185.08,185.07,0.03]
[1739787995005,0.12549,185.0,184.99,0.03]
[1739787995806,0.12549,185.01,184.99,0.03]
[1739787999486,3.90909,185.01,184.99,0.03]
[1739787999804,0.12549,185.0,184.99,0.03]
[1739788000001,10.35938073,185.0,184.99,0.03]
[1739788003605,14.14308073,185.0,184.99,0.03]
[1739788004177,10.35938073,185.0,184.99,0.03]
[1739788005305,0.12549,185.0,184.99,0.03]
[1739788010878,14.14308073,185.0,184.99,0.03]
[1739788012788,10.35938073,185.0,184.99,0.03]
[1739788013113,14.26857073,185.0,184.99,0.03]
[1739788015611,150.76857073,185.0,184.99,0.03]
[1739788016111,150.76857073,185.0,184.96,0.03]
[1739788016112,20.0,184.97,184.96,0.03]
[1739788016288,30.35938073,184.97,184.96,0.03]
[1739788016918,30.48487073,184.97,184.96,0.03]
[1739788017248,112.78487073,184.97,184.96,0.03]
[1739788018206,116.56917073,184.97,184.96,0.03]
[1739788021830,102.42549,184.97,184.96,0.03]
[1739788022029,20.12549,184.97,184.96,0.03]
[1739788022330,0.12549,184.97,184.96,0.03]
[1739788022713,20.12549,184.97,184.96,0.03]
[1739788023197,0.12549,184.97,184.96,0.03]
[1739788029044,82.3,184.98,184.96,0.03]
[1739788029423,0.063,184.99,184.96,0.03]
[1739788029746,0.18849,184.99,184.96,0.03]
[1739788029932,14.08089073,184.99,184.96,0.03]
[1739788030134,10.10840073,184.98,184.96,0.03]
[1739788030439,0.12549,184.97,184.96,0.03]
[1739788030817,10.23389073,184.97,184.96,0.03]
[1739788031407,10.35938073,184.97,184.96,0.03]
[1739788032343,0.063,184.99,184.96,10.13840073]
[1739788032637,0.063,184.99,184.98,10.10840073]
[1739788033617,0.063,184.99,184.97,19.35347394]
[1739788033918,0.063,184.99,184.98,3.23574677]
[1739788034822,0.063,184.99,184.98,6.43351998]
[1739788035441,0.063,184.99,184.98,3.19777321]
[1739788036656,0.063,184.99,184.96,0.03]
[1739788036946,10.35938073,184.97,184.96,0.03]
[1739788037159,10.48487073,184.97,184.96,0.03]
[1739788038262,150.76917073,184.97,184.96,0.03]
[1739788038427,15.26917073,184.97,184.96,0.03]
[1739788038623,16.26917073,184.97,184.96,0.03]
[1739788038823,1.37647,184.96,184.95,0.03]
[1739788039039,13.13817073,184.96,184.95,0.03]
[1739788039255,53.57177365,184.96,184.95,0.03]
[1739788041348,45.78831853,184.95,184.94,0.03]
[1739788041559,96.33032218,184.95,184.94,0.03]
[1739788041932,66.33032218,184.95,184.94,0.03]
[1739788042355,21.37647,184.93,184.92,0.03]
[1739788042569,32.48487073,184.93,184.92,0.03]
[1739788043137,75.89671926,184.93,184.92,0.03]
[1739788043944,30.48487073,184.93,184.92,0.03]
[1739788044133,39.15475558,184.93,184.92,0.03]
[1739788044348,42.93995558,184.93,184.92,0.03]
[1739788044662,86.35180411,184.93,184.92,0.03]
[1739788047361,1.37647,184.92,184.89,0.03]
[1739788047567,10.48487073,184.9,184.89,0.03]
[1739788048260,12.48487073,184.9,184.89,0.03]
[1739788048838,11.48487073,184.9,184.89,0.03]
[1739788049044,12.48487073,184.9,184.89,0.03]
[1739788049361,12.48487073,184.9,184.8,0.03]
[1739788049362,0.37647,184.85,184.8,0.03]
[1739788049553,0.12549,184.81,184.8,0.03]
[1739788049936,10.23389073,184.81,184.8,0.03]
[1739788050266,10.48487073,184.81,184.8,0.03]
[1739788051638,14.27247073,184.81,184.8,0.03]
[1739788054243,14.27247073,184.81,184.63,21.90820073]
[1739788054244,0.12549,184.7,184.63,21.90820073]
[1739788054450,10.10840073,184.68,184.63,8.0085]
[1739788054679,15.86639245,184.68,184.63,8.0085]
[1739788055036,15.86639245,184.67,184.63,8.0085]
[1739788055759,15.99188245,184.67,184.63,8.0085]
[1739788056065,0.12549,184.67,184.63,8.0085]
[1739788056260,15.86639245,184.67,184.63,8.0085]
[1739788056668,0.12549,184.66,184.63,8.0085]
[1739788057349,16.11737245,184.68,184.63,8.0085]
[1739788057546,15.86639245,184.67,184.63,8.0085]
[1739788057752,0.12549,184.66,184.63,8.0085]
[1739788058269,15.86639245,184.67,184.63,8.0085]
[1739788060171,15.99188245,184.66,184.63,8.0085]
[1739788060363,15.99188245,184.66,184.59,11.7136]
[1739788060673,15.86639245,184.67,184.6,15.86639245]
[1739788061469,15.86639245,184.65,184.59,11.7136]
[1739788061775,15.86639245,184.65,184.59,7.9215]
[1739788061954,0.12549,184.65,184.59,27.57999245]
[1739788062149,0.12549,184.65,184.59,23.78789245]
[1739788062358,15.99188245,184.65,184.59,7.9215]
[1739788062746,15.99188245,184.65,184.59,11.7136]
[1739788063047,98.16639245,184.68,184.61,15.86639245]
[1739788063246,82.3,184.68,184.62,15.86639245]
[1739788064161,82.3,184.68,184.62,19.65779245]
[1739788065075,98.16639245,184.68,184.62,3.7914]
[1739788065445,3.91599,184.67,184.59,11.7436]
[1739788065652,0.12549,184.67,184.61,15.86639245]
[1739788066375,101.95669245,184.68,184.61,15.86639245]
[1739788066570,82.3,184.68,184.62,15.86639245]
[1739788067945,98.16639245,184.68,184.61,19.65809245]
[1739788068881,98.16639245,184.68,184.61,15.86639245]
[1739788069078,101.95669245,184.68,184.61,15.86639245]
[1739788069382,0.12549,184.67,184.61,15.86639245]
[1739788070049,82.42549,184.71,184.62,29.27824098]
[1739788070256,86.21519,184.71,184.65,15.86639245]
[1739788070458,0.12549,184.7,184.65,15.86639245]
[1739788070957,0.12549,184.7,184.64,15.86639245]
[1739788071782,82.3,184.71,184.65,15.86639245]
[1739788072157,101.95609245,184.71,184.64,19.65749245]
[1739788072478,98.16639245,184.71,184.64,19.65749245]
[1739788073192,82.3,184.71,184.65,15.86639245]
[1739788073696,15.86639245,184.72,184.66,13.41184853]
[1739788073859,218.8,184.75,184.69,15.86639245]
[1739788074055,218.8,184.75,184.7,15.86639245]
[1739788074369,218.8,184.75,184.69,15.86639245]
[1739788074370,82.3,184.75,184.69,15.86639245]
[1739788074678,82.3,184.75,184.7,10.14577528]
[1739788074860,82.3,184.75,184.67,13.41184853]
[1739788074861,82.3,184.75,184.71,10.14577528]
[1739788075056,82.3,184.75,184.7,10.14577528]
[1739788075381,10.27126528,184.75,184.69,10.14577528]
[1739788075768,0.12549,184.75,184.69,10.14577528]
[1739788076564,3.7889,184.75,184.69,15.85290528]
[1739788076882,15.85290528,184.73,184.67,13.41184853]
[1739788077682,16.10388528,184.72,184.66,27.31770528]
[1739788077888,16.10388528,184.72,184.66,27.31760528]
[1739788077889,15.97839528,184.72,184.66,27.31760528]
[1739788078183,19.76789528,184.72,184.66,15.85290528]
[1739788078363,19.76789528,184.72,184.65,19.64380528]
[1739788079491,15.97839528,184.72,184.65,19.64380528]
[1739788080681,218.8,184.73,184.67,15.85290528]
[1739788080985,0.12549,184.72,184.66,15.85290528]
[1739788081197,218.8,184.73,184.67,29.26475381]
[1739788081486,0.12549,184.72,184.67,15.85290528]
[1739788081693,0.12549,184.72,184.66,15.85290528]
[1739788082172,0.12549,184.72,184.67,15.85290528]
[1739788082373,218.8,184.73,184.67,15.85290528]
[1739788082690,218.8,184.73,184.68,15.85290528]
[1739788083293,3.7891,184.74,184.68,15.85290528]
[1739788083789,0.12549,184.74,184.68,15.85290528]
[1739788085794,3.7891,184.74,184.68,15.85290528]
[1739788086978,19.76729528,184.75,184.68,19.64320528]
[1739788087305,15.85290528,184.74,184.68,13.41184853]
[1739788087479,15.85290528,184.72,184.65,15.85290528]
[1739788087668,15.85290528,184.71,184.64,15.85290528]
[1739788088078,15.85290528,184.71,184.64,19.64390528]
[1739788088770,0.12549,184.71,184.65,15.85290528]
[1739788089073,0.12549,184.71,184.66,0.03]
[1739788090170,3.7893,184.73,184.66,15.88290528]
[1739788090384,3.7893,184.73,184.67,15.85290528]
[1739788090694,3.7893,184.73,184.66,0.03]
[1739788090695,15.97839528,184.7,184.66,0.03]
[1739788091190,15.85290528,184.72,184.66,0.03]
[1739788091769,15.85290528,184.72,184.66,13.44184853]
[1739788092064,19.76769528,184.73,184.66,29.29475381]
[1739788092267,19.76769528,184.73,184.66,33.08535381]
[1739788093090,15.97839528,184.73,184.66,33.08535381]
[1739788093493,15.97839528,184.73,184.67,3.19148785]
[1739788093683,19.76769528,184.73,184.67,3.19148785]
[1739788094687,19.76769528,184.73,184.66,33.08535381]
[1739788095503,3.91479,184.73,184.66,33.08535381]
[1739788095683,98.15290528,184.74,184.67,15.85290528]
[1739788095886,19.70480528,184.75,184.68,13.41184853]
[1739788096803,13.99904938,184.75,184.68,13.41184853]
[1739788097009,10.14714938,184.74,184.68,13.41184853]
[1739788097585,10.14714938,184.74,184.68,17.20214853]
[1739788098090,10.14714938,184.73,184.67,13.41184853]
[1739788098908,30.14714938,184.74,184.67,13.41184853]
[1739788099206,10.27263938,184.73,184.66,10.17714938]
[1739788099386,10.14714938,184.72,184.66,0.03]
[1739788099585,3.91479,184.73,184.66,0.03]
[1739788099586,10.14714938,184.71,184.66,0.03]
[1739788100313,10.14714938,184.7,184.66,0.03]
[1739788100687,10.14714938,184.71,184.66,0.03]
[1739788101316,13.93684938,184.71,184.66,0.03]
[1739788103999,13.93714938,184.7,184.66,0.03]
[1739788105297,10.14714938,184.68,184.66,0.03]
[1739788107010,3.91549,184.7,184.66,0.03]
[1739788107011,10.14714938,184.67,184.66,0.03]
[1739788107209,10.27263938,184.67,184.66,0.03]
[1739788107409,14.06313938,184.67,184.66,0.03]
[1739788109206,14.31411938,184.67,184.66,0.03]
[1739788110196,10.27263938,184.67,184.66,0.03]
[1739788111502,10.14714938,184.68,184.66,0.03]
[1739788112707,10.27263938,184.67,184.66,0.03]
[1739788113712,10.52361938,184.67,184.66,0.03]
[1739788114704,0.37647,184.63,184.61,0.03]
[1739788114903,10.27263938,184.62,184.61,0.03]
[1739788115613,10.52361938,184.62,184.61,0.03]
[1739788116627,14.31511938,184.62,184.61,0.03]
[1739788116999,10.52361938,184.62,184.61,0.03]
[1739788119725,10.27263938,184.62,184.61,0.03]
[1739788120098,10.52361938,184.62,184.61,0.03]
[1739788121526,14.31511938,184.62,184.61,0.03]
[1739788133215,4.16797,184.62,184.61,0.03]
[1739788133412,14.31511938,184.62,184.61,0.03]
[1739788137616,20.96677534,184.62,184.61,0.03]
[1739788139653,0.12549,184.56,184.49,7.5996]
[1739788139816,10.14714938,184.52,184.49,7.5996]
[1739788140017,10.14714938,184.53,184.49,7.5996]
[1739788140439,20.25098,184.57,184.49,7.5996]
[1739788140440,10.14714938,184.54,184.49,7.5996]
[1739788141356,10.14714938,184.52,184.49,7.5996]
[1739788142363,0.12549,184.5,184.47,0.03]
[1739788142556,3.7937,184.52,184.47,0.03]
[1739788142557,10.14714938,184.48,184.47,0.03]
[1739788142731,10.14714938,184.49,184.47,0.03]
[1739788143231,10.14714938,184.48,184.47,0.03]
[1739788143628,10.52361938,184.48,184.47,0.03]
[1739788144139,14.31801938,184.48,184.47,0.03]
[1739788145223,14.06703938,184.48,184.47,0.03]
[1739788145626,14.31801938,184.48,184.47,0.03]
[1739788147525,10.27263938,184.48,184.47,0.03]
[1739788147755,10.14714938,184.5,184.47,0.03]
[1739788148048,10.14714938,184.51,184.47,0.03]
[1739788148652,10.14714938,184.54,184.47,10.17714938]
[1739788148853,10.14714938,184.52,184.47,0.03]
[1739788149036,3.7928,184.56,184.47,0.03]
[1739788149238,10.14714938,184.55,184.48,10.14714938]
[1739788149447,10.14714938,184.55,184.47,0.03]
[1739788149448,10.14714938,184.56,184.5,10.14714938]
[1739788149647,10.14714938,184.57,184.5,10.14714938]
[1739788149957,10.21014938,184.59,184.53,10.14714938]
[1739788150325,10.21014938,184.59,184.49,5.7942]
[1739788150326,0.063,184.59,184.54,10.14714938]
[1739788151060,0.063,184.59,184.54,18.11844938]
[1739788151258,10.21014938,184.59,184.54,7.9713]
[1739788151847,0.063,184.59,184.54,11.7644]
[1739788152230,10.21014938,184.59,184.54,7.9713]
[1739788154560,0.063,184.59,184.54,7.9713]
[1739788154872,0.063,184.59,184.54,21.91154938]
[1739788155247,0.063,184.59,184.54,7.9713]
[1739788155559,0.063,184.59,184.54,11.7645]
[1739788156276,0.063,184.59,184.54,21.91164938]
[1739788156568,0.063,184.59,184.55,23.55899791]
[1739788156747,0.063,184.59,184.57,13.41184853]
[1739788156952,0.063,184.59,184.57,10.14714938]
[1739788157378,0.063,184.59,184.58,10.14714938]
[1739788157947,0.063,184.59,184.58,23.55899791]
[1739788158150,0.063,184.59,184.58,27.35129791]
[1739788160946,0.063,184.59,184.58,69.93989543]
[1739788161271,13.24765968,184.64,184.58,11.7755]
[1739788161478,23.39480906,184.64,184.58,21.92264938]
[1739788162263,23.39480906,184.64,184.59,3.18936618]
[1739788162570,13.24765968,184.64,184.63,13.41184853]
[1739788162770,13.24765968,184.64,184.63,23.55899791]
[1739788162975,10.14714938,184.7,184.63,23.55899791]
[1739788163777,10.14714938,184.7,184.63,27.35019791]
[1739788164282,222.46,184.74,184.63,27.35019791]
[1739788164484,10.14714938,184.7,184.63,27.35019791]
[1739788164685,10.14714938,184.69,184.63,17.20304853]
[1739788165890,10.14714938,184.7,184.63,27.35019791]
[1739788166191,10.14714938,184.69,184.63,17.20304853]
[1739788166786,10.14714938,184.7,184.63,27.35019791]
[1739788167484,10.14714938,184.7,184.64,10.14714938]
[1739788167895,30.14714938,184.71,184.64,10.14714938]
[1739788168099,10.14714938,184.72,184.65,10.14714938]
[1739788168268,89.7492,184.74,184.66,10.14714938]
[1739788168269,10.14714938,184.73,184.66,10.14714938]
[1739788169066,10.14714938,184.73,184.66,21.74944938]
[1739788171395,20.0,184.74,184.67,23.55899791]
[1739788171569,10.14714938,184.73,184.66,21.74944938]
[1739788171764,10.14714938,184.72,184.66,11.6023]
[1739788172174,10.14714938,184.73,184.66,21.74944938]
[1739788172673,13.93644938,184.73,184.66,21.74944938]
[1739788172878,10.14714938,184.72,184.66,11.6023]
[1739788173378,3.7893,184.73,184.67,10.14714938]
[1739788173564,13.93644938,184.73,184.66,21.74954938]
[1739788174377,10.14714938,184.73,184.66,21.74954938]
[1739788174591,0.063,184.75,184.69,23.55899791]
[1739788174902,0.063,184.75,184.7,10.14714938]
[1739788175805,0.063,184.75,184.69,23.55899791]
[1739788176795,0.063,184.75,184.7,3.7899]
[1739788177268,0.063,184.75,184.69,27.34909791]
[1739788178591,0.063,184.75,184.71,10.14714938]
[1739788178792,0.063,184.75,184.73,10.14714938]
[1739788179497,0.063,184.75,184.73,13.93634938]
[1739788183177,0.063,184.75,184.74,23.55899791]
[1739788184402,0.063,184.75,184.74,27.34809791]
[1739788185608,0.063,184.75,184.74,28.34809791]
[1739788189198,0.063,184.75,184.72,10.14714938]
[1739788189925,10.21014938,184.75,184.68,10.14714938]
[1739788190291,10.21014938,184.75,184.69,13.41184853]
[1739788190914,10.14714938,184.74,184.67,13.93764938]
[1739788191210,10.14714938,184.73,184.68,13.41184853]
[1739788191387,10.14714938,184.73,184.66,21.74964938]
[1739788194303,10.14714938,184.73,184.67,3.17289794]
[1739788194713,10.14714938,184.73,184.67,6.96339794]
[1739788195007,10.27263938,184.74,184.67,17.11054732]
[1739788195329,10.27263938,184.74,184.67,6.96339794]
[1739788196295,10.27263938,184.74,184.68,3.17289794]
[1739788196717,10.27263938,184.74,184.68,6.96319794]
[1739788198333,10.27263938,184.74,184.69,3.17289794]
[1739788199728,10.14714938,184.74,184.69,6.96289794]
[1739788199899,10.14714938,184.74,184.7,3.17289794]
[1739788200427,10.14714938,184.73,184.7,3.17289794]
[1739788201195,10.14714938,184.73,184.68,3.17289794]
[1739788201396,10.14714938,184.7,184.68,3.17289794]
[1739788201627,10.14714938,184.69,184.68,3.17289794]
[1739788201999,10.14714938,184.7,184.68,3.17289794]
[1739788202324,10.14714938,184.72,184.68,3.17289794]
[1739788202501,10.14714938,184.73,184.68,6.96319794]
[1739788202702,10.14714938,184.72,184.66,17.20254853]
[1739788204329,10.14714938,184.73,184.66,27.34969791]
[1739788204527,10.14714938,184.73,184.67,3.17289794]
[1739788204704,10.14714938,184.73,184.67,6.96329794]
[1739788206027,10.14714938,184.73,184.67,3.7904]
[1739788207025,3.97749,184.75,184.69,10.14714938]
[1739788207026,0.063,184.75,184.69,10.14714938]
[1739788207514,10.21014938,184.75,184.68,23.55899791]
[1739788207716,10.14714938,184.73,184.66,10.14714938]
[1739788208017,10.14714938,184.73,184.66,23.55899791]
[1739788208215,3.8519,184.75,184.64,81.5]
[1739788208216,10.14714938,184.7,184.64,81.5]
[1739788208418,10.14714938,184.69,184.63,3.7911]
[1739788208726,13.93724938,184.69,184.63,3.7911]
[1739788208928,10.14714938,184.69,184.64,3.1938888]
[1739788209235,10.14714938,184.71,184.64,3.1938888]
[1739788210101,10.14714938,184.72,184.65,23.55899791]
[1739788210413,10.14714938,184.73,184.66,10.14714938]
[1739788210619,10.14714938,184.73,184.67,13.41184853]
[1739788211015,10.14714938,184.71,184.66,3.1938888]
[1739788211403,10.14714938,184.72,184.66,3.1938888]
[1739788211700,10.14714938,184.71,184.66,3.1938888]
[1739788211906,10.14714938,184.72,184.66,3.1938888]
[1739788212447,13.93654938,184.73,184.67,3.1938888]
[1739788214331,10.14714938,184.72,184.67,3.1938888]
[1739788214814,10.14714938,184.74,184.67,3.7904]
[1739788215328,10.14714938,184.71,184.65,3.7907]
[1739788215630,0.25098,184.74,184.65,13.93784938]
[1739788215631,10.14714938,184.72,184.65,13.93784938]
[1739788216130,82.363,184.75,184.66,23.55899791]
[1739788216341,86.1519,184.75,184.66,20.0]
[1739788216638,10.14714938,184.74,184.67,23.55899791]
[1739788216833,10.14714938,184.73,184.66,30.14714938]
[1739788217005,10.14714938,184.72,184.66,20.0]
[1739788217409,10.14714938,184.7,184.63,95.43834938]
[1739788217632,10.14714938,184.69,184.64,13.41184853]
[1739788218236,10.14714938,184.7,184.64,17.20294853]
[1739788219135,10.14714938,184.7,184.65,3.19734046]
[1739788219518,10.14714938,184.71,184.65,3.19734046]
[1739788220041,10.14714938,184.74,184.68,13.41184853]
[1739788220344,10.21014938,184.75,184.68,23.55899791]
[1739788220539,10.21014938,184.75,184.69,3.19734046]
[1739788220720,10.14714938,184.71,184.69,3.19734046]
[1739788221130,10.14714938,184.7,184.69,3.19734046]
[1739788221445,13.93704938,184.7,184.69,3.19734046]
[1739788221826,13.93704938,184.7,184.65,3.19734046]
[1739788222129,10.14714938,184.67,184.65,3.19734046]
[1739788222460,10.14714938,184.66,184.65,3.19734046]
[1739788223845,13.93794938,184.66,184.6,3.19734046]
[1739788224140,10.14714938,184.62,184.6,3.19734046]
[1739788224720,15.87496372,184.62,184.6,3.19734046]
[1739788225344,15.87496372,184.63,184.59,0.03]
[1739788225526,15.87496372,184.64,184.59,3.8221]
[1739788225732,15.87496372,184.64,184.59,0.03]
[1739788225927,15.87496372,184.63,184.59,0.03]
[1739788226441,15.87496372,184.64,184.59,0.03]
[1739788227647,15.87496372,184.63,184.59,0.03]
[1739788227828,140.2907,184.67,184.59,0.03]
[1739788227829,15.87496372,184.64,184.59,0.03]
[1739788230534,15.87496372,184.61,184.59,0.03]
[1739788231245,15.87496372,184.62,184.59,0.03]
[1739788233749,15.87496372,184.61,184.59,0.03]
[1739788234829,15.87496372,184.6,184.59,0.03]
[1739788235051,16.12594372,184.6,184.59,0.03]
[1739788235249,16.25143372,184.6,184.59,0.03]
[1739788236450,20.04333372,184.6,184.59,0.03]
[1739788238057,35.91829744,184.6,184.59,0.03]
[1739788238551,20.04333372,184.6,184.59,0.03]
[1739788239142,35.91829744,184.6,184.59,0.03]
[1739788240832,43.92259744,184.6,184.59,0.03]